fUSD/lending_fUSD_20260219
["ID","MTS","AMOUNT","RATE_DAILY","PERIOD"]
[405977917,1771487502774,-500.0,0.00043835,120]
[405977918,1771487502783,-500.0,0.00043835,120]
[405977919,1771487502792,-500.0,0.00043835,120]
[405977920,1771487502802,-514.32518651,0.00043835,120]
[405977921,1771487502813,-176.64496825,0.00043835,120]
[405977922,1771487502822,-500.0,0.00043835,14]
[405977923,1771487502831,-500.0,0.00043835,14]
[405977924,1771487502841,-500.0,0.00043835,14]
[405977925,1771487502850,-500.0,0.00043835,14]
[405977926,1771487502859,-500.0,0.00043835,14]
[405977927,1771487502868,-500.0,0.00043835,14]
[405977928,1771487502877,-500.0,0.00043835,14]
[405977929,1771487502886,-500.0,0.00043835,14]
[405977930,1771487502898,-500.0,0.00043835,14]
[405977931,1771487502907,-500.0,0.00043835,14]
[405977932,1771487502916,-500.0,0.00043835,14]
[405977933,1771487502925,-500.0,0.00043835,14]
[405977934,1771487502935,-500.0,0.00043835,14]
[405977935,1771487502944,-500.0,0.00043835,14]
[405977936,1771487502952,-500.0,0.00043835,14]
[405977937,1771487502962,-500.0,0.00043835,14]
[405977938,1771487502971,-500.0,0.00043835,14]
[405977939,1771487502980,-500.0,0.00043835,14]
[405977940,1771487502989,-361.86003289,0.00043835,14]
[405977941,1771487502999,-500.0,0.00043835,120]
[405977942,1771487503008,-500.0,0.00043835,120]
[405977943,1771487503018,-500.0,0.00043835,120]
[405977944,1771487503027,-529.17527365,0.00043835,120]
[405977945,1771487503036,-500.0,0.00043835,120]
[405977946,1771487503045,-500.0,0.00043835,120]
[405977947,1771487503053,-500.0,0.00043835,120]
[405977948,1771487503062,-500.0,0.00043835,120]
[405977949,1771487503071,-500.0,0.00043835,120]
[405977950,1771487503080,-500.0,0.00043835,120]
[405977951,1771487503089,-500.0,0.00043835,120]
[405977952,1771487503099,-500.0,0.00043835,120]
[405977953,1771487503110,-500.0,0.00043835,120]
[405977954,1771487503121,-560.25131613,0.00043835,120]
[405977955,1771487503131,-164.43226478,0.00043835,120]
[405977956,1771487503139,-320.49071856,0.00043835,120]
[405977957,1771487503148,-163.25383327,0.00043835,120]
[405977958,1771487503159,-330.94996453,0.00043835,120]
[405977959,1771487503168,-685.72,0.00043835,120]
[405977960,1771487503179,-685.72,0.00043835,120]
[405977961,1771487503190,-685.72,0.00043835,120]
[405977962,1771487503201,-685.72,0.00043835,120]
[405977963,1771487503210,-685.72,0.00043835,120]
[405977964,1771487503219,-685.72,0.00043835,120]
[405977965,1771487503228,-685.72,0.00043835,120]
[405977966,1771487503237,-685.72,0.00043835,120]
[405977967,1771487503247,-685.72,0.00043835,120]
[405977968,1771487503256,-685.72,0.00043835,120]
[405977969,1771487503265,-685.72,0.00043835,120]
[405977970,1771487503274,-685.72,0.00043835,120]
[405977971,1771487503283,-685.72,0.00043835,120]
[405977972,1771487503292,-685.72,0.00043835,120]
[405977973,1771487503301,-685.72,0.00043835,120]
[405977974,1771487503310,-685.72,0.00043835,120]
[405977975,1771487503320,-685.72,0.00043835,120]
[405977976,1771487503330,-685.72,0.00043835,120]
[405977977,1771487503339,-685.72,0.00043835,120]
[405977978,1771487503348,-685.72,0.00043835,120]
[405977979,1771487503357,-685.72,0.00043835,120]
[405977980,1771487503366,-685.72,0.00043835,120]
[405977981,1771487503375,-685.72,0.00043835,120]
[405977982,1771487503384,-685.90546274,0.00043835,120]
[405977983,1771487503393,-306.04186228,0.00043835,120]
[405977984,1771487503403,-500.0,0.00043835,120]
[405977985,1771487503413,-500.0,0.00043835,120]
[405977986,1771487503424,-550.67343992,0.00043835,120]
[405977987,1771487503434,-500.0,0.00043835,120]
[405977988,1771487503443,-253.33101928,0.00043835,120]
[405977989,1771487503452,-500.0,0.00043835,120]
[405977990,1771487503462,-500.0,0.00043835,120]
[405977991,1771487503471,-500.0,0.00043835,120]
[405977992,1771487503480,-500.0,0.00043835,120]
[405977993,1771487503489,-500.0,0.00043835,120]
[405977994,1771487503498,-500.0,0.00043835,120]
[405977995,1771487503508,-500.0,0.00043835,120]
[405977996,1771487503517,-500.0,0.00043835,120]
[405977997,1771487503530,-550.0,0.00043835,120]
[405977998,1771487503550,-521.52289334,0.00043835,120]
[405977999,1771487503570,-500.0,0.00043835,120]
[405978000,1771487503590,-468.61104247,0.00043835,120]
[405978001,1771487503611,-154.27565828,0.00043835,120]
[405978002,1771487503621,-16035.12,0.00043835,120]
[405978003,1771487503632,-16035.12,0.00043835,120]
[405978004,1771487503643,-16035.12,0.00043835,120]
[405978005,1771487503655,-16035.12,0.00043835,120]
[405978006,1771487503666,-16035.12,0.00043835,120]
[405978007,1771487503675,-16035.12,0.00043835,120]
[405978008,1771487503685,-16035.12,0.00043835,120]
[405978009,1771487503696,-16035.12,0.00043835,120]
[405978010,1771487503706,-16035.12,0.00043835,120]
[405978011,1771487503716,-16035.12,0.00043835,120]
[405978012,1771487503727,-16035.12,0.00043835,120]
[405978013,1771487503737,-16035.12,0.00043835,120]
[405978014,1771487503748,-16035.12,0.00043835,120]
[405978015,1771487503758,-16035.12,0.00043835,120]
[405978016,1771487503769,-16035.12,0.00043835,120]
[405978017,1771487503781,-16035.12,0.00043835,120]
[405978018,1771487503791,-16035.12,0.00043835,120]
[405978019,1771487503802,-16035.12,0.00043835,120]
[405978020,1771487503811,-16035.12,0.00043835,120]
[405978021,1771487503820,-16035.12,0.00043835,120]
[405978022,1771487503831,-16035.12,0.00043835,120]
[405978023,1771487503841,-16035.12,0.00043835,120]
[405978024,1771487503852,-16035.12,0.00043835,120]
[405978025,1771487503862,-16035.1709398,0.00043835,120]
[405978026,1771487503875,-5074.33,0.00043835,120]
[405978027,1771487503887,-5074.33,0.00043835,120]
[405978028,1771487503897,-5074.33,0.00043835,120]
[405978029,1771487503906,-5074.33,0.00043835,120]
[405978030,1771487503916,-5074.33,0.00043835,120]
[405978031,1771487503926,-5074.33,0.00043835,120]
[405978032,1771487503937,-5074.33,0.00043835,120]
[405978033,1771487503948,-5074.33,0.00043835,120]
[405978034,1771487503958,-5074.33,0.00043835,120]
[405978035,1771487503968,-5074.33,0.00043835,120]
[405978036,1771487503978,-5074.33,0.00043835,120]
[405978037,1771487503988,-5074.33,0.00043835,120]
[405978038,1771487504000,-5074.33,0.00043835,120]
[405978039,1771487504009,-5074.33,0.00043835,120]
[405978040,1771487504022,-5074.33,0.00043835,120]
[405978041,1771487504032,-5074.33,0.00043835,120]
[405978042,1771487504041,-5074.33,0.00043835,120]
[405978043,1771487504050,-5074.33,0.00043835,120]
[405978044,1771487504059,-5074.33,0.00043835,120]
[405978045,1771487504068,-5074.33,0.00043835,120]
[405978046,1771487504078,-5074.33,0.00043835,120]
[405978047,1771487504087,-5074.33,0.00043835,120]
[405978048,1771487504096,-5074.33,0.00043835,120]
[405978049,1771487504106,-5074.35984689,0.00043835,120]
[405978050,1771487504119,-5636.53,0.00043835,120]
[405978051,1771487504128,-5636.53,0.00043835,120]
[405978052,1771487504137,-5636.53,0.00043835,120]
[405978053,1771487504146,-5636.53,0.00043835,120]
[405978054,1771487504156,-5636.53,0.00043835,120]
[405978055,1771487504165,-5636.53,0.00043835,120]
[405978056,1771487504174,-5636.53,0.00043835,120]
[405978057,1771487504184,-5636.53,0.00043835,120]
[405978058,1771487504193,-5636.53,0.00043835,120]
[405978059,1771487504202,-5636.53,0.00043835,120]
[405978060,1771487504211,-5636.53,0.00043835,120]
[405978061,1771487504219,-5636.53,0.00043835,120]
[405978062,1771487504228,-5636.53,0.00043835,120]
[405978063,1771487504237,-5636.53,0.00043835,120]
[405978064,1771487504246,-5636.53,0.00043835,120]
[405978065,1771487504255,-5636.53,0.00043835,120]
[405978066,1771487504264,-5636.53,0.00043835,120]
[405978067,1771487504273,-5636.53,0.00043835,120]
[405978068,1771487504282,-5636.53,0.00043835,120]
[405978069,1771487504291,-5636.53,0.00043835,120]
[405978070,1771487504300,-5636.53,0.00043835,120]
[405978071,1771487504309,-5636.53,0.00043835,120]
[405978072,1771487504318,-5636.53,0.00043835,120]
[405978073,1771487504327,-5636.76002729,0.00043835,120]
[405978074,1771487504336,-500.0,0.00043835,120]
[405978075,1771487504346,-500.0,0.00043835,120]
[405978076,1771487504355,-500.0,0.00043835,120]
[405978077,1771487504365,-500.0,0.00043835,120]
[405978078,1771487504374,-500.0,0.00043835,120]
[405978079,1771487504383,-500.0,0.00043835,120]
[405978080,1771487504392,-500.0,0.00043835,120]
[405978081,1771487504401,-270.02227263,0.00043835,120]
[405978082,1771487504410,-9284.838259,0.00043835,120]
[405978083,1771487504420,-13573.96276,0.00043835,120]
[405978084,1771487504429,-500.0,0.00043835,120]
[405978085,1771487504438,-500.0,0.00043835,120]
[405978086,1771487504448,-500.0,0.00043835,120]
[405978087,1771487504458,-500.0,0.00043835,120]
[405978088,1771487504467,-500.0,0.00043835,120]
[405978089,1771487504476,-500.0,0.00043835,120]
[405978090,1771487504485,-500.0,0.00043835,120]
[405978091,1771487504494,-500.0,0.00043835,120]
[405978092,1771487504503,-500.0,0.00043835,120]
[405978093,1771487504512,-500.0,0.00043835,120]
[405978094,1771487504522,-500.0,0.00043835,120]
[405978095,1771487504531,-500.0,0.00043835,120]
[405978096,1771487504540,-500.0,0.00043835,120]
[405978097,1771487504550,-500.0,0.00043835,120]
[405978098,1771487504559,-500.0,0.00043835,120]
[405978099,1771487504569,-500.0,0.00043835,120]
[405978100,1771487504578,-500.0,0.00043835,120]
[405978101,1771487504588,-500.0,0.00043835,120]
[405978102,1771487504706,-500.0,0.00043835,120]
[405978103,1771487504718,-500.0,0.00043835,120]
[405978104,1771487504728,-500.0,0.00043835,120]
[405978105,1771487504739,-500.0,0.00043835,120]
[405978106,1771487504750,-500.0,0.00043835,120]
[405978107,1771487504761,-500.0,0.00043835,120]
[405978108,1771487504772,-500.0,0.00043835,120]
[405978109,1771487504783,-500.0,0.00043835,120]
[405978110,1771487504794,-500.0,0.00043835,120]
[405978111,1771487504805,-500.0,0.00043835,120]
[405978112,1771487504815,-500.0,0.00043835,120]
[405978113,1771487504827,-500.0,0.00043835,120]
[405978114,1771487504839,-500.0,0.00043835,120]
[405978115,1771487504851,-500.0,0.00043835,120]
[405978116,1771487504862,-500.0,0.00043835,120]
[405978117,1771487504871,-500.0,0.00043835,120]
[405978118,1771487504882,-386.602643,0.00043835,120]
[405978119,1771487504892,-504.73949116,0.00043835,3]
[405978120,1771487504904,-558.38775917,0.00043835,120]
[405978121,1771487504916,-173.08695406,0.00043835,120]
[405978122,1771487504926,-152.6781596,0.00043835,120]
[405978123,1771487504936,-1000.0,0.00043835,3]
[405978124,1771487504945,-1000.0,0.00043835,3]
[405978125,1771487504955,-1000.0,0.00043835,3]
[405978126,1771487504966,-1000.0,0.00043835,3]
[405978127,1771487504977,-1000.0,0.00043835,3]
[405978128,1771487504986,-1000.0,0.00043835,3]
[405978129,1771487504997,-1000.0,0.00043835,3]
[405978130,1771487505006,-1000.0,0.00043835,3]
[405978131,1771487505016,-1000.0,0.00043835,3]
[405978132,1771487505027,-1000.0,0.00043835,3]
[405978133,1771487505038,-379.31580722,0.00043835,3]
[405978134,1771487505047,-207.416074,0.00043835,120]
[405978135,1771487505058,-500.0,0.00043835,2]
[405978136,1771487505067,-500.0,0.00043835,2]
[405978137,1771487505076,-500.0,0.00043835,2]
[405978138,1771487505085,-500.0,0.00043835,2]
[405978139,1771487505094,-500.0,0.00043835,2]
[405978140,1771487505105,-500.0,0.00043835,2]
[405978141,1771487505116,-500.0,0.00043835,2]
[405978142,1771487505126,-500.0,0.00043835,2]
[405978143,1771487505136,-500.0,0.00043835,2]
[405978144,1771487505145,-500.0,0.00043835,2]
[405978145,1771487505155,-500.0,0.00043835,2]
[405978146,1771487505164,-500.0,0.00043835,2]
[405978147,1771487505174,-500.0,0.00043835,2]
[405978148,1771487505183,-500.0,0.00043835,2]
[405978149,1771487505193,-500.0,0.00043835,2]
[405978150,1771487505202,-500.0,0.00043835,2]
[405978151,1771487505212,-500.0,0.00043835,2]
[405978152,1771487505222,-500.0,0.00043835,2]
[405978153,1771487505231,-207.31018532,0.00043835,2]
[405978154,1771487505241,-1000.0,0.00043835,120]
[405978155,1771487505251,-1000.0,0.00043835,120]
[405978156,1771487505261,-1000.0,0.00043835,120]
[405978157,1771487505270,-1000.0,0.00043835,120]
[405978158,1771487505280,-1000.0,0.00043835,120]
[405978159,1771487505289,-1000.0,0.00043835,120]
[405978160,1771487505299,-1000.0,0.00043835,120]
[405978161,1771487505308,-1000.0,0.00043835,120]
[405978162,1771487505317,-1071.25922132,0.00043835,120]
[405978163,1771487505327,-500.0,0.00043835,2]
[405978164,1771487505336,-500.0,0.00043835,2]
[405978165,1771487505346,-500.0,0.00043835,2]
[405978166,1771487505355,-500.0,0.00043835,2]
[405978167,1771487505365,-500.0,0.00043835,2]
[405978168,1771487505375,-500.0,0.00043835,2]
[405978169,1771487505385,-500.0,0.00043835,120]
[405978170,1771487505394,-246.35006987,0.00043835,2]
[405978171,1771487505404,-500.0,0.00043835,120]
[405978172,1771487505414,-500.0,0.00043835,120]
[405978173,1771487505423,-500.0,0.00043835,120]
[405978174,1771487505432,-500.0,0.00043835,120]
[405978175,1771487505442,-500.0,0.00043835,120]
[405978176,1771487505452,-500.0,0.00043835,120]
[405978177,1771487505462,-500.0,0.00043835,120]
[405978178,1771487505471,-500.0,0.00043835,120]
[405978179,1771487505481,-500.0,0.00043835,120]
[405978180,1771487505490,-381.66631255,0.00043835,120]
[405978181,1771487505501,-300.0,0.00043835,2]
[405978182,1771487505510,-300.0,0.00043835,2]
[405978183,1771487505520,-300.0,0.00043835,2]
[405978184,1771487505529,-300.0,0.00043835,2]
[405978185,1771487505538,-300.0,0.00043835,2]
[405978186,1771487505547,-300.0,0.00043835,2]
[405978187,1771487505556,-300.0,0.00043835,2]
[405978188,1771487505566,-300.0,0.00043835,2]
[405978189,1771487505575,-300.0,0.00043835,2]
[405978190,1771487505584,-300.0,0.00043835,2]
[405978191,1771487505594,-300.0,0.00043835,2]
[405978192,1771487505603,-300.0,0.00043835,2]
[405978193,1771487505613,-300.0,0.00043835,2]
[405978194,1771487505623,-402.9009493,0.00043835,2]
[405978195,1771487505632,-1999.0,0.00043835,120]
[405978196,1771487505642,-1063.9810308,0.00043835,120]
[405978197,1771487505651,-1367.82,0.00043835,2]
[405978198,1771487505661,-1367.82,0.00043835,2]
[405978199,1771487505670,-1367.82,0.00043835,2]
[405978200,1771487505679,-1367.82,0.00043835,2]
[405978201,1771487505689,-1367.82,0.00043835,2]
[405978202,1771487505698,-1367.82,0.00043835,2]
[405978203,1771487505707,-576.16508436,0.00043835,120]
[405978204,1771487505715,-1367.82,0.00043835,2]
[405978205,1771487505725,-1367.82,0.00043835,2]
[405978206,1771487505734,-1367.82,0.00043835,2]
[405978207,1771487505743,-1367.82,0.00043835,2]
[405978208,1771487505752,-1367.82,0.00043835,2]
[405978209,1771487505762,-1367.82,0.00043835,2]
[405978210,1771487505771,-1367.82,0.00043835,2]
[405978211,1771487505780,-1367.82,0.00043835,2]
[405978212,1771487505789,-1367.82,0.00043835,2]
[405978213,1771487505798,-1367.82,0.00043835,2]
[405978214,1771487505807,-1367.82,0.00043835,2]
[405978215,1771487505816,-1367.82,0.00043835,2]
[405978216,1771487505825,-1367.82,0.00043835,2]
[405978217,1771487505834,-1367.82,0.00043835,2]
[405978218,1771487505844,-1367.82,0.00043835,2]
[405978219,1771487505853,-1367.82,0.00043835,2]
[405978220,1771487505862,-1367.82,0.00043835,2]
[405978221,1771487505872,-1367.94748743,0.00043835,2]
[405978222,1771487505881,-500.0,0.00043835,2]
[405978223,1771487505890,-500.0,0.00043835,2]
[405978224,1771487505899,-500.0,0.00043835,2]
[405978225,1771487505909,-500.0,0.00043835,2]
[405978226,1771487505918,-500.0,0.00043835,2]
[405978227,1771487505927,-500.0,0.00043835,2]
[405978228,1771487505936,-500.0,0.00043835,2]
[405978229,1771487505945,-500.0,0.00043835,2]
[405978230,1771487505954,-326.80486273,0.00043835,2]
[405978231,1771487505963,-500.0,0.00043835,2]
[405978232,1771487505972,-500.0,0.00043835,2]
[405978233,1771487505981,-500.0,0.00043835,2]
[405978234,1771487505990,-500.0,0.00043835,2]
[405978235,1771487505999,-500.0,0.00043835,2]
[405978236,1771487506009,-500.0,0.00043835,2]
[405978237,1771487506018,-500.0,0.00043835,2]
[405978238,1771487506027,-841.0,0.00043836,120]
[405978239,1771487506036,-151.638684,0.00043836,120]
[405978240,1771487506045,-151.638684,0.00043836,120]
[405978241,1771487506054,-151.638684,0.00043836,120]
[405978242,1771487506063,-151.638684,0.00043836,120]
[405978243,1771487506072,-151.638684,0.00043836,120]
[405978244,1771487506081,-151.638684,0.00043836,120]
[405978245,1771487506090,-151.638684,0.00043836,120]
[405978246,1771487506099,-151.638684,0.00043836,120]
[405978247,1771487506108,-151.638684,0.00043836,120]
[405978248,1771487506121,-151.638684,0.00043836,120]
[405978249,1771487506131,-151.638684,0.00043836,120]
[405978250,1771487506139,-151.638684,0.00043836,120]
[405978251,1771487506149,-151.638684,0.00043836,120]
[405978252,1771487506158,-151.638684,0.00043836,120]
[405978253,1771487506167,-151.638684,0.00043836,120]
[405978254,1771487506176,-151.638684,0.00043836,120]
[405978255,1771487506186,-151.638684,0.00043836,120]
[405978256,1771487506196,-151.638684,0.00043836,120]
[405978257,1771487506206,-151.638684,0.00043836,120]
[405978258,1771487506215,-151.638689,0.00043836,120]
[405978259,1771487506225,-500.0,0.00043836,30]
[405978260,1771487506234,-500.0,0.00043836,30]
[405978261,1771487506244,-150.0,0.00043836,8]
[405978262,1771487506254,-488.81,0.00043885,120]
[405978263,1771487506263,-3538.39634552,0.000439,2]
[405978264,1771487506272,-177.0,0.000439,120]
[405978265,1771487506281,-500.0,0.00043945,120]
[405978266,1771487506290,-500.0,0.00043945,120]
[405978267,1771487506299,-488.81,0.00043985,120]
[405978268,1771487506307,-428.63118061,0.00044,120]
[405978269,1771487506317,-168307.26170328,0.00044,10]
[405978270,1771487506326,-51522.54226518,0.00044,2]
[405978271,1771487506335,-501.0,0.00044,120]
[405978272,1771487506344,-300.0,0.00044,120]
[405978273,1771487506353,-174.63380201,0.00044,120]
[405978274,1771487506362,-232.54290435,0.00044,10]
[405978275,1771487506472,-4000.0,0.00044,60]
[405978276,1771487506482,-160.7409285,0.00044,2]
[405978277,1771487506491,-1032.0,0.00044,120]
[405978278,1771487506500,-560.817858,0.00044,57]
[405978279,1771487506510,-500.0,0.00044,120]
[405978280,1771487506519,-190.33,0.00044007,120]
[405978281,1771487506528,-150.0,0.00044056,120]
[405978282,1771487506537,-500.0,0.00044082,120]
[405978283,1771487506547,-500.0,0.00044082,120]
[405978284,1771487506556,-150.0,0.00044085,120]
[405978285,1771487506565,-488.81,0.00044085,120]
[405978286,1771487506575,-190.33,0.00044107,120]
[405978287,1771487506584,-841.0,0.0004411,120]
[405978288,1771487506593,-256.89964292,0.0004411,120]
[405978289,1771487506603,-1056.82603879,0.00044136,120]
[405978290,1771487506612,-1444.0,0.00044164,120]
[405978291,1771487506621,-488.81,0.00044185,120]
[405978292,1771487506630,-190.33,0.00044207,120]
[405978293,1771487506639,-318.2928184,0.00044218,2]
[405978294,1771487506648,-500.0,0.00044219,120]
[405978295,1771487506657,-500.0,0.00044219,120]
[405978296,1771487506667,-1037.6,0.00044235,120]
[405978297,1771487506676,-288.55,0.00044245,120]
[405978298,1771487506684,-150.0,0.00044281,120]
[405978299,1771487506694,-488.81,0.00044285,120]
[405978300,1771487506702,-151.0,0.000443,120]
[405978301,1771487506711,-447.0590464,0.000443,120]
[405978302,1771487506721,-190.33,0.00044307,120]
[405978303,1771487506730,-500.0,0.00044347,120]
[405978304,1771487506739,-500.0,0.00044347,120]
[405978305,1771487506748,-500.0,0.00044347,120]
[405978306,1771487506758,-500.0,0.00044347,120]
[405978307,1771487506767,-500.0,0.00044347,120]
[405978308,1771487506776,-500.0,0.00044347,120]
[405978309,1771487506785,-500.0,0.00044347,120]
[405978310,1771487506794,-500.0,0.00044347,120]
[405978311,1771487506803,-500.0,0.00044347,120]
[405978312,1771487506812,-500.0,0.00044347,120]
[405978313,1771487506822,-500.0,0.00044347,120]
[405978314,1771487506831,-500.0,0.00044347,120]
[405978315,1771487506840,-500.0,0.00044347,120]
[405978316,1771487506848,-500.0,0.00044347,120]
[405978317,1771487506856,-500.0,0.00044347,120]
[405978318,1771487506863,-500.0,0.00044347,120]
[405978319,1771487506872,-545.15,0.00044347,120]
[405978320,1771487506881,-180.06647179,0.00044347,2]
[405978321,1771487506890,-252.09306051,0.00044347,30]
[405978322,1771487506900,-215.07948463,0.00044353,16]
[405978323,1771487506909,-500.0,0.00044356,120]
[405978324,1771487506918,-500.0,0.00044356,120]
[405978325,1771487506927,-400.0,0.0004437,3]
[405978326,1771487506936,-1999.0,0.00044383,120]
[405978327,1771487506945,-841.0,0.00044384,120]
[405978328,1771487506955,-488.81,0.00044385,120]
[405978329,1771487506964,-211.35811196,0.00044393,120]
[405978330,1771487506973,-262.775,0.000444,90]
[405978331,1771487506982,-263.77281109,0.000444,120]
[405978332,1771487506991,-177.0,0.000444,120]
[405978333,1771487507001,-150.0,0.000444,120]
[405978334,1771487507010,-150.0,0.000444,120]
[405978335,1771487507019,-150.0,0.000444,120]
[405978336,1771487507028,-150.0,0.000444,120]
[405978337,1771487507038,-150.0,0.000444,120]
[405978338,1771487507046,-190.33,0.00044407,120]
[405978339,1771487507055,-1424.2,0.00044426,120]
[405978340,1771487507064,-1424.2,0.00044426,120]
[405978341,1771487507073,-1424.2,0.00044426,120]
[405978342,1771487507082,-1424.2,0.00044426,120]
[405978343,1771487507091,-1424.2,0.00044426,120]
[405978344,1771487507100,-1424.2,0.00044426,120]
[405978345,1771487507109,-1424.2,0.00044426,120]
[405978346,1771487507122,-1424.2,0.00044426,120]
[405978347,1771487507131,-1424.2,0.00044426,120]
[405978348,1771487507140,-1424.2,0.00044426,120]
[405978349,1771487507149,-1424.2,0.00044426,120]
[405978350,1771487507159,-1424.2,0.00044426,120]
[405978351,1771487507168,-1424.2,0.00044426,120]
[405978352,1771487507179,-1424.2,0.00044426,120]
[405978353,1771487507188,-1424.2,0.00044426,120]
[405978354,1771487507204,-1424.2,0.00044426,120]
[405978355,1771487507223,-1424.2,0.00044426,120]
[405978356,1771487507240,-1424.2,0.00044426,120]
[405978357,1771487507260,-1424.2,0.00044426,120]
[405978358,1771487507276,-1424.2,0.00044426,120]
[405978359,1771487507293,-1424.2,0.00044426,120]
[405978360,1771487507311,-1424.2,0.00044426,120]
[405978361,1771487507331,-1424.2,0.00044426,120]
[405978362,1771487507350,-1424.2,0.00044426,120]
[405978363,1771487507367,-1424.2,0.00044426,120]
[405978364,1771487507386,-1424.2,0.00044426,120]
[405978365,1771487507402,-1424.2,0.00044426,120]
[405978366,1771487507415,-1424.2,0.00044426,120]
[405978367,1771487507434,-1424.2,0.00044426,120]
[405978368,1771487507448,-1423.92884352,0.00044426,120]
[405978369,1771487507463,-1204.0,0.00044426,120]
[405978370,1771487507477,-1204.0,0.00044426,120]
[405978371,1771487507491,-1204.0,0.00044426,90]
[405978372,1771487507506,-1204.0,0.00044426,90]
[405978373,1771487507520,-1240.28,0.00044439,30]
[405978374,1771487507535,-476.49,0.0004444,30]
[405978375,1771487507550,-201.47,0.0004444,30]
[405978376,1771487507565,-34524.05654515,0.0004444,30]
[405978377,1771487507579,-34524.05654515,0.0004444,30]
[405978378,1771487507597,-34524.05654515,0.0004444,30]
[405978379,1771487507612,-238.7196138,0.0004444,2]
[405978380,1771487507627,-1083.43690901,0.0004444,120]
[405978381,1771487507642,-560.22,0.00044441,30]
[405978382,1771487507656,-150.0,0.00044441,30]
[405978383,1771487507671,-150.91,0.00044441,30]
[405978384,1771487507685,-471.37,0.00044441,30]
[405978385,1771487507700,-476.49,0.00044442,30]
[405978386,1771487507714,-180.39,0.00044448,30]
[405978387,1771487507729,-836.74956234,0.00044452,30]
[405978388,1771487507745,-836.74956234,0.00044452,30]
[405978389,1771487507760,-520.64167325,0.00044452,30]
[405978390,1771487507775,-520.64167325,0.00044452,30]
[405978391,1771487507789,-13418787.16523819,0.00044454,10]
[405978392,1771487507803,-1316930.1526313,0.00044454,10]
[405978393,1771487507817,-884294.89486011,0.00044454,10]
[405978394,1771487885723,4514.02557034,6.5e-05,2]
[405978395,1771487885769,5485.98442966,6.5e-05,2]
[405978396,1771487885793,3392.06671108,6.5e-05,2]
[405978397,1771487885825,6607.94328892,6.5e-05,2]
[405978398,1771487885849,5179.458232,6.5e-05,2]
[405978399,1771487885898,4820.551768,6.5e-05,2]
[405978400,1771487885920,10000.01,6.5e-05,2]
[405978401,1771487885941,4240.2157035,6.5e-05,2]
[405978402,1771487885973,5759.7942965,6.5e-05,2]
[405978403,1771487885995,10000.01,6.5e-05,2]
[405978404,1771487886017,6210.32355524,6.5e-05,2]
[405978420,1771488102030,-157.518,6.565e-05,2]
[405978421,1771488102057,-924.812,6.565e-05,2]
[405978422,1771488102084,-242.0,6.599e-05,2]
[405978423,1771488102107,-207.0,6.599e-05,2]
[405978424,1771488102137,-287.83673919,6.698e-05,2]
[405978425,1771488102163,-1200.0,6.698e-05,2]
[405978426,1771488102190,-94680.83326081,6.699e-05,2]
[405978427,1771488102221,-3000000.0,6.699e-05,2]
[405978428,1771488591182,5000.01,6.4e-05,2]
[405978429,1771488591205,166.61855187,6.4e-05,2]
[405978447,1771488632408,-150.0,6.572e-05,2]
[405978448,1771488632419,-129.79428379,6.597e-05,2]